Cogmind - Beta 16 @@@ ROGUE MODE // 2025.11.14 @ 11:50:01 Player: souux Result: Destroyed by AG-VFW(R) with Subdweller Laser Performance ------------- Evolutions (0) 0 Regions Visited (2) 400 Robots Destroyed (35) 175 Value Destroyed (625) 625 Prototype IDs (0) 0 Alien Tech Used (0) 0 Bonus (0) 0 TOTAL SCORE: 1200 Bonus ------- None Cogmind --------- Core Integrity 0/250 Matter 232/300 Energy 179/200 System Corruption 2% Temperature Cool (36) Movement Treading (320) Ox2 Location -10/Subcaves Parts ------- > --- POWER (1) -------- Subdweller Power Source > --- PROPULSION (2) --- Light Treads Light Treads > --- UTILITY (2) ------ Huge Storage Unit Hardened Light Armor Plating > --- WEAPON (2) ------- Subdweller Beam Cannon > --- INVENTORY (25) --- Subdweller Power Source Light Treads Light Treads Light Treads Light Treads Compact Wheel Compact Wheel Subdweller Monowheel Improved Heat Sink High-capacity Matter Pod (200) Subdweller Optics Scrap Shield Hacking Suite Shotgun Shotgun Grenade Launcher Grenade Launcher Subdweller Shrapnel Launcher Makeshift Sword Peak State ------------ > --- POWER ------------ Ion Engine > --- PROPULSION ------- Light Treads Light Treads > --- UTILITY ---------- Huge Storage Unit Hardened Light Armor Plating > --- WEAPON ----------- Particle Gun Shotgun > --- INVENTORY -------- Ion Engine Light Treads Light Treads Light Treads Light Treads Light Treads Compact Wheel Compact Wheel Subdweller Monowheel Improved Heat Sink High-capacity Matter Pod Hardened Light Armor Plating Hardened Light Armor Plating Scrap Shield Hacking Suite EM Pulse Gun Subdweller Beam Cannon Shotgun Shotgun Subdweller Machine Gun Grenade Launcher Grenade Launcher Subdweller Shrapnel Launcher Mace [Rating: 14] Favorites ----------- Power Ion Engine Engine Ion Engine Propulsion Compact Wheel Treads Light Treads Wheel Compact Wheel Utility Hardened Light Armor Plating Device Improved Terrain Scanner Storage Huge Storage Unit Protection Hardened Light Armor Plating Weapon Shotgun Energy Gun Particle Gun Energy Cannon Subdweller Beam Cannon Ballistic Gun Shotgun Launcher Grenade Launcher Impact Weapon Mace Build | -11 -10 -10 ------- Run | Yrd Mat Sub Slots Evolved . | . . . Power . | . . . Propulsion . | . . . Utility . | . . . Weapon . | . . . Parts Attached 28 | 8 11 9 Power 3 | 1 . 2 Engine 3 | 1 . 2 Core . | . . . Reactor . | . . . Propulsion 8 | 2 5 1 Treads 3 | . 2 1 Leg . | . . . Wheel 5 | 2 3 . Hover . | . . . Flight . | . . . Utility 7 | 2 3 2 Device 1 | 1 . . Storage 3 | 1 2 . Processor . | . . . Hackware . | . . . Protection 3 | . 1 2 Artifact . | . . . Weapon 10 | 3 3 4 Energy Gun 2 | 1 1 . Energy Cannon 1 | . . 1 Ballistic Gun 5 | 2 1 2 Ballistic Cannon . | . . . Launcher 1 | . 1 . Special Weapon . | . . . Impact Weapon 1 | . . 1 Slashing Weapon . | . . . Piercing Weapon . | . . . Special Melee Weapon . | . . . Unidentified Prototypes . | . . . Parts Lost 7 | . . 7 Power 2 | . . 2 Propulsion . | . . . Utility 2 | . . 2 Weapon 3 | . . 3 Highest Loss Streak 3 | . . 3 To Critical Strikes . | . . . Average Backups 19 | 5 12 22 Power . | . 1 . Propulsion 6 | 3 4 7 Utility 4 | . 3 5 Weapon 6 | . 3 7 Tool/Special . | . . . Unused Backups 22 | . 5 17 Power 1 | . . 1 Propulsion 8 | . 2 6 Utility 7 | . 2 5 Weapon 6 | . 1 5 Tool/Special . | . . . Average Slot Usage (%) 99 | . 100 99 Engine 13 | . 14 13 Treads 13 | . 3 16 Wheel 14 | . 24 11 Storage 14 | . 14 14 Protection 13 | . 12 13 Energy Gun 9 | . 13 8 Energy Cannon 1 | . . 1 Ballistic Gun 13 | . 14 13 Impact Weapon 2 | . . 2 Peak Build Rating 14 | 9 12 14 Average Rating 12 | 5 11 13 On Entrance 7 | . 9 12 Avg Prop Armor Cover (%) 2 | . . 2 Naked Turns . | . . . Heaviest Build 102 | 13 96 102 Greatest Support 40 | 20 40 40 Greatest Overweight (x) 5 | 1 2 5 Average Overweight (x) 2 | . 1 2 Largest Inventory Capacity 25 | 8 25 25 Average Capacity 22 | 7 17 25 Most Carried 25 | 7 20 25 Average Carried 19 | 5 12 23 Final Capacity 25 | 8 25 25 Final Carried 20 | 7 20 20 Class Distribution -------------------- 100% | Mutant Dominant Class ---------------- Mutant | -10/Materials Mutant | -10/Subcaves Resources | -11 -10 -10 ----------- Run | Yrd Mat Sub Matter Collected 1389 | 317 673 399 Remotely . | . . . Salvage Created 896 | 162 534 200 Parts 66 | 16 40 10 Haulers Intercepted 2 | . 2 . Recyclers Shooed 4 | 1 3 . Parts Field Recycled . | . . . Retrieved Matter . | . . . Parts Self-Destructed 14 | . . 14 Prevented . | . . . Parts Restored . | . . . Kills | -11 -10 -10 ------- Run | Yrd Mat Sub Combat Hostiles Destroyed 18 | . 12 6 Guns 10 | . 6 4 AOE 7 | . 6 1 Classes Destroyed 10 | 2 6 2 Worker 4 | . 4 . Tunneler 6 | 5 1 . Hauler 2 | . 2 . Recycler 2 | 1 1 . Operator 1 | . 1 . Watcher 2 | . 2 . Swarmer 7 | . 6 1 Grunt 6 | . 6 . Sentry 1 | . . 1 Subdweller 4 | . . 4 Best Kill Streak 6 | 2 6 2 Combat Bots Only 3 | . 3 2 Max Kills in Single Turn 2 | 1 2 1 Gunslinging . | . . . Exploded 1 | . 1 1 Melee . | . . . Uniques/NPCs Destroyed . | . . . Combat | -11 -10 -10 -------- Run | Yrd Mat Sub Hostile Shots Fired 109 | . 31 78 Missed 32 | . 5 27 Hits 77 | . 26 51 Projectile 77 | . 26 51 AOE 3 | . . 3 Critical Strikes 1 | . 1 . Damage Taken 1373 | . 416 957 Core 264 | . 61 203 Absorbed by Shields . | . . . Core Remaining (%) 100 | 100 . . Volleys Fired 107 | 22 42 43 Largest 2 | 2 2 2 Hottest 145 | 40 88 145 Shots Fired 178 | 44 69 65 Gun 137 | 44 58 35 Cannon 24 | . . 24 Launcher 17 | . 11 6 Special . | . . . Kinetic 92 | 44 28 20 Thermal 60 | . 21 39 Explosive 17 | . 11 6 Electromagnetic 9 | . 9 . Robot Hit Streak 14 | 11 6 14 Robot Miss Streak 5 | 3 5 2 Penetration Max . | . . . Secondary Targets . | . . . Shots Hit Robots 105 | 30 36 39 Core Hits 56 | 11 31 14 Critical Kills 1 | . . 1 Critical Parts Destroyed 1 | 1 . . Critical Strikes 4 | 1 1 2 Burn 2 | . 1 1 Meltdown 1 | . . 1 Destroy 1 | 1 . . Melee Attacks 3 | . . 3 Impact 3 | . . 3 Slashing . | . . . Piercing . | . . . Sneak Attacks . | . . . Combat Hostiles . | . . . Follow-up Attacks . | . . . Damage Inflicted 2284 | 243 1201 840 Guns 1220 | 243 542 435 Cannons 163 | . . 163 Explosions 883 | . 641 242 Melee . | . . . Ramming 18 | . 18 . Kinetic 750 | 243 241 266 Thermal 591 | . 259 332 Explosive 799 | . 557 242 Electromagnetic 126 | . 126 . Impact . | . . . Slashing . | . . . Piercing . | . . . Highest Corruption 2 | . 2 2 Average Corruption 1 | . 1 2 Corruption Purged . | . . . Corruption Blocked . | . . . Effects 45 | . 6 39 Message Errors 12 | . 1 11 Matter Fused 10 | . . 10 Heat Flow Errors 3 | . 1 2 Energy Discharges 4 | . . 4 Parts Fused 1 | . 1 . Data Loss (minor) 9 | . 1 8 Data Loss (major) 2 | . . 2 Misfires 2 | . 1 1 Alerts 2 | . 1 1 Overload Shots . | . . . Overflow Damage 63 | . 20 43 Projectiles . | . . . Explosions 63 | . 20 43 Melee . | . . . Knockbacks . | . . . Impact . | . . . Kinetic . | . . . Secondary . | . . . Self-Inflicted Damage 201 | . 139 62 Shots 9 | . 6 3 Rammed 3 | . 3 . Targets Rammed 3 | . 3 . Kicked . | . . . Crushed . | . . . Highest Temperature 352 | . 352 140 Average Temperature 83 | . 106 18 Received Heat Transfer 294 | . 120 174 Effects 2 | . 2 . Shutdowns 1 | . 1 . Energy Bleed 1 | . 1 . Siege Activations . | . . . Martial Activations . | . . . Shielding Activations . | . . . Robots Disrupted . | . . . Combat Hostiles . | . . . Robots Corrupted . | . . . Combat Hostiles . | . . . Parts Fried . | . . . Impact Corruptions . | . . . Robots Melted 1 | . . 1 Combat Hostiles 1 | . . 1 Parts Melted 2 | . 2 . Heat Transferred 1284 | . 581 703 Parts Sabotaged . | . . . Parts Stolen . | . . . Parts Stripped . | . . . Power Chain Reactions 1 | . 1 . Alert | -11 -10 -10 ------- Run | Yrd Mat Sub Maximum Alert Level . | . . . Low Security (%) 100 | 100 100 . Level 1 . | . . . Level 2 . | . . . Level 3 . | . . . Level 4 . | . . . Level 5 . | . . . High Security . | . . . Max Security . | . . . Peak Influence 152 | 10 152 . Initial . | . . . Average 57 | 1 64 . Influence Increases 661 | 30 486 145 Destroy 0b10 Robot/C 280 | . 240 40 Destroy 0b10 Robot/NC 85 | 30 55 . Destroy Leader 48 | . 48 . Successful Hack 35 | . 35 . Disable Machine 15 | . 15 . Destroy Structure 63 | . 63 . Lose Combat Pursuer 135 | . 30 105 Influence Decreases 630 | 30 411 189 Entered New Map 37 | . . 37 Time Decay 543 | 30 411 102 Lost Part 50 | . . 50 Squads Dispatched . | . . . Investigation . | . . . Extermination . | . . . Reinforcement . | . . . Assault . | . . . Garrison . | . . . Intercept . | . . . Searches Triggered . | . . . Construction Impeded . | . . . Haulers Reinforced . | . . . Active Scanning Responses . | . . . Cargo Convoy Interrupts . | . . . Stealth | -11 -10 -10 --------- Run | Yrd Mat Sub Distress Signals 3 | . 3 . Communications Jammed . | . . . Distress Signals . | . . . Times Spotted 34 | . 19 15 Peak Tracking Total 4 | . 4 4 Tactical Retreats 3 | . 1 2 Traps | -11 -10 -10 ------- Run | Yrd Mat Sub Traps Triggered 5 | . 3 2 Indirectly . | . . . Trap Hack Attempts . | . . . Triggered . | . . . Disarmed . | . . . Reprogrammed . | . . . Reused . | . . . Traps Extracted . | . . . Installed . | . . . Triggered . | . . . Machines | -11 -10 -10 ---------- Run | Yrd Mat Sub Machines Disabled 1 | . 1 . Max in Single Turn 1 | . 1 . Machines Repaired . | . . . Machines Dismantled . | . . . Machines Sabotaged . | . . . Overloaded Fab Kills . | . . . Hacking | -11 -10 -10 --------- Run | Yrd Mat Sub Machines Accessed 8 | . 8 . Terminals 8 | . 8 . Fabricators . | . . . Repair Stations . | . . . Recycling Units . | . . . Scanalyzers . | . . . Garrison Access . | . . . Total Hacks 26 | . 26 . Successful 12 | . 12 . Failed 14 | . 14 . Catastrophic 1 | . 1 . Database Lockouts . | . . . Manual 26 | . 26 . Terminals 26 | . 26 . Fabricators . | . . . Repair Stations . | . . . Recycling Units . | . . . Scanalyzers . | . . . Garrison Access . | . . . Terminal Hacks 4 | . 4 . Part Schematic 2 | . 2 . Robot Analysis 2 | . 2 . Fabricator Hacks . | . . . Repair Station Hacks . | . . . Recycling Unit Hacks . | . . . Scanalyzer . | . . . Garrison Access Hacks . | . . . Unauthorized Hacks 8 | . 8 . Terminals 8 | . 8 . Botnet 3 | . 3 . Skim 5 | . 5 . Fabricators . | . . . Repair Stations . | . . . Recycling Units . | . . . Scanalyzers . | . . . Garrison Access . | . . . Data Cores Recovered 1 | . 1 . Used . | . . . Hacking Detections 8 | . 8 . Full Trace Events . | . . . Feedback Events . | . . . Feedback Blocked . | . . . Robot Schematics Acquired . | . . . Robots Built . | . . . Authchips . | . . . Time . | . . . Total Robot Build Rating . | . . . Part Schematics Acquired 2 | . 2 . Parts Built . | . . . Authchips . | . . . Time . | . . . Total Part Build Rating . | . . . Part Studies Acquired . | . . . Parts Repaired . | . . . Time . | . . . Parts Recycled . | . . . Recycled Matter . | . . . Retrieved Matter . | . . . Retrieved Components . | . . . Parts Scanalyzed . | . . . Part Schematics Acquired . | . . . Parts Damaged . | . . . Bothacking | -11 -10 -10 ------------ Run | Yrd Mat Sub Used RIF Installer . | . . . Robots Hacked . | . . . Non-combat . | . . . Combat . | . . . Robot Hacks Applied . | . . . Relay Couplers Released . | . . . Fabnet Peak Effective % . | . . . Robots Rewired . | . . . Allies Hacked . | . . . Hacks Repelled . | . . . Allies | -11 -10 -10 -------- Run | Yrd Mat Sub Total Allies . | . . . Largest Group . | . . . Highest-Rated Group . | . . . Highest-Rated Ally . | . . . Total Orders . | . . . Ally Attacks . | . . . Total Damage . | . . . Kills . | . . . Allies Corrupted . | . . . Allies Melted . | . . . Intel | -11 -10 -10 ------- Run | Yrd Mat Sub Active Infowar (turns) 155 | 12 143 . Terrain 155 | 12 143 . Robot Analysis Total 2 | . 2 . Derelict Logs Recovered . | . . . Drone Launches . | . . . Drone Recoveries . | . . . Exploration | -11 -10 -10 ------------- Run | Yrd Mat Sub Turns Passed 4913 | 160 1285 3468 Spaces Moved 2448 | 102 865 1481 Core 10 | 10 . . Treads 640 | . 39 601 Legs . | . . . Wheels 1798 | 92 826 880 Hover . | . . . Flight . | . . . Fastest Speed 50 | 50 80 130 Average Speed 177 | 77 116 219 Slowest Speed 320 | 95 160 320 Overloaded Moves . | . . . Propulsion Burnouts . | . . . Robots Hopped . | . . . Potential Cave-ins . | . . . Cave-ins Triggered . | . . . Exploration Rate (%) 57 | 4 99 70 Regions Visited 2 Branch Regions 1 Pre-discovered Areas 1 | . 1 . Known Exits Taken . | . . . Unknown Exits Taken 2 | 1 1 . Scrap Searched 1 | . . 1 Spaces Dug 36 | . 35 1 Terrain Destroyed 106 | . 73 33 Melee 1 | . . 1 Projectile 2 | . . 2 AOE 103 | . 73 30 Terrain Rammed . | . . . Walls Destroyed . | . . . Machines Disabled . | . . . Actions | -11 -10 -10 --------- Run | Yrd Mat Sub Total 2830 | 143 1062 1625 Wait 151 | 5 88 58 Move 2446 | 101 864 1481 Hop . | . . . Pick Up 37 | 7 20 10 Fast Attach 14 | 7 7 . Attach 6 | . . 6 Detach . | . . . Swap 44 | 1 24 19 Drop 19 | . 14 5 Fire 107 | 22 42 43 Melee 3 | . . 3 Ram 1 | . 1 . Kick . | . . . Crush 2 | . 2 . Escape Stasis . | . . . Rewire . | . . . Trap . | . . . Miscellaneous . | . . . Route ------- -11/Scrapyard -10/Materials (discovered 5 exits: *Mat x3 / *Min / [*Sub]) -10/Subcaves (discovered 3 exits: [*Mat x2] / [*Scr]) History --------- Turn | Location | Event 8 | -11/Scrapyard | Discovered new exit (range 14) 161 | -11/Scrapyard | Entered Materials 162 | -10/Materials | Met a group of wandering Federalists 223 | -10/Materials | Discovered new exit (range 8) 325 | -10/Materials | Build established: Mutant 382 | -10/Materials | Discovered new exit (range 14) 451 | -10/Materials | Discovered new exit (range 7) 878 | -10/Materials | Discovered new exit (range 16) 953 | -10/Materials | Discovered new exit (range 4) 1169 | -10/Materials | Identified exit to Materials 1169 | -10/Materials | Identified exit to Mines 1225 | -10/Materials | Learned Storage stockpile data 1310 | -10/Materials | Learned 2 Mines zone layouts 1337 | -10/Materials | Learned Storage trap positions 1377 | -10/Materials | Learned location of Recycling (-7) 1443 | -10/Materials | Learned 4 Recycling zone layouts 1446 | -10/Materials | Entered Subcaves 1447 | -10/Subcaves | Continued accompanying wandering Federalists (5) 1447 | -10/Subcaves | Approached by a straggling Scientist 1667 | -10/Subcaves | Wandering Federalist uncovered a shortcut to Scraptown 1683 | -10/Subcaves | Shifting Twisted Machinery released Shrapnel Trap 1799 | -10/Subcaves | Shifting Twisted Machinery released Scrap Shield 2145 | -10/Subcaves | Discovered new exit (range 11) 3309 | -10/Subcaves | Ambushed by Subdwellers from Twisted Machinery 3401 | -10/Subcaves | Core integrity fell below 50% 3437 | -10/Subcaves | Ambushed by Subdweller buried in earth 4143 | -10/Subcaves | Core integrity fell below 20% 4202 | -10/Subcaves | Discovered new exit (range 11) 4403 | -10/Subcaves | Shifting Twisted Machinery released Sub. Shrapnel Launcher 4518 | -10/Subcaves | Lost 3 parts (1p1u1w) 4543 | -10/Subcaves | Shifting Twisted Machinery released Mak. Sword 4914 | -10/Subcaves | Destroyed by AG-VFW(R) with Subdweller Laser Last Messages --------------- 04501_ Subatomizers dissect the Sub. Machine Gun. 04501_ Acquired 28 matter. 04537_ Subatomizers dissect the Sub. Machine Gun. Mak. Sword falls loose from the Twisted Machinery. 04549_ Dropped Mace. 04552_ Acquired Mak. Sword. 04634_ / ZV:& :IJ3J|SULSVVEL3B2 04767_ Searching scrap... 04767_ Found Shrapnel Trap. 04767_ Found Sub. Power Source. 04767_ Found 35 Matter. 04768_ Acquired 35 matter. 04770_ Acquired Sub. Power Source. 04861_ Dropped Lgt. Treads. 04900_ System corrupted: Component data lost. 04914_ Sub. Machine Gun destroyed. Map ----- +----------------------------------------------------+ | ?????????????????????????????????????????????????? | | ?????????????????????????????????????????????????? | | ?????????????????????????????????????????????????? | | ?????????????????????????????????????????????????? | | ?????????????????????????????????????????????????? | | ?????????????????????????????????????????????????? | | ?????????????????????????????????????????????????? | | ?????????????????????????????????????????????????? | | ?????????????????????????????????????????????? ??? | | ?????????????????????????????????????????????? ?? | | ?????????????????????????????????????????????? ?? | | ?????????????????????????????????????????????? ?? | | ????????????????????????????????#???????????? #?? | | ???????????????????????????????# ???????????? #?? | | ??????????????????????????????? ???????????? ##? | | ????????????????????????????#??" ???????????? ## | | ????????????????????????????# ? #####??????? # | | ????????????????????????????# ?" # ####??? | | ?????????????????????????????"## % ###? | | ?????????????????????????##??# % ## | | ?????????????????????????? ## #??# | | ?????????????????????????? ## ##??# ? | | ??????????????????????????# ## #???# #?? | | ???????????????"????????###RR;# #???# #?? | | ???????????????"" ????#; ##?# ##### #?? | | ?????????????????# #@ ### ##= # ##?? | | ????????????????????# R #??? | | ????????????????????## # # ## ## ## ## #??? | | ?????????????????????#?###### ######### #??? | | ????????????????????????????# #???????## #??? | | ?????????????????????????##### ########## ##??? | | ????????????????????????## # # # ###???? | | ????????????????????????# ##????? | | ???????????????????????## ## # #????? | | ???????????????????????# #####& ##??### | | ???????????????????????# ## ## #??## # ##### | | ???????????????????????############???#### # | | ?????????????????????????????????????????# # | | ?????????????????????????????????????????## # | | ?????????????????????????????????????????## #### | | ????????????????????????????????????????## #### | | ????????????????????????????????????????# #### | | ????????????????????????????????????????###?# | | ????????????????????????????????????????????### | | ??????????????????????????????????????????????## | | ???????????????????????????????????????????????### | | ?????????????????????????????????????????????????? | | ?????????????????????????????????????????????????? | | ?????????????????????????????????????????????????? | | ?????????????????????????????????????????????????? | +----------------------------------------------------+ Best States ------------- Heat Dissipation 25 Energy Generation 15 Energy Capacity 250 Matter Stores 300 Matter Capacity 300 Sight Range 16 Terrain Scan Range 16 Terrain Scan Density 10 Armor Coverage 150 Evasion (%) 50 Recoil Reduction 2 Item Schematics ----------------- Hcp. Storage Unit | -10/Materials | Hacked Lgt. Treads | -10/Materials | Hacked Robot Schematics ------------------ None Fabricated ------------ Nothing Repaired ---------- Nothing Studied --------- None Alien Tech Used ----------------- None Achievements -------------- None Challenges ------------ None Game ------ Seed CargoSupersonicAmplifier Manual? 0 Play Time 00:27:44 Cumulative 95.2 hours Start 2025.11.14 @ 11:22:33 End 2025.11.14 @ 11:50:01 Sessions 1 Manual Loads 0 Difficulty Rogue Special Mode None Game No. 86 Rogue 86 Adventurer 0 Explorer 0 Win Type - Total 1 Types 1/0/0/0/0/0/0/0/0/0 Lore% 38 Gallery% 42 Achievement% 34 Wizard Run 0 Options --------- Layout 2 ASCII 0 Keyboard 0 Movement Mouse Keybinds 0 Fullscreen 2 Font 24/Terminus Map View 50x44 Zoom Use 0% Tactical HUD 1 Map Filters NONE Filters NONE Steam 1 RUN: aa62f50d-874a-4b54-ae53-595149bcabef